bitfinex-derivatives/quotes_ETHF0:USTF0_20260115
["timestamp","ask_amount","ask_price","bid_price","bid_amount"]
[1768471899166,1.1774907,3366.2,3365.4,0.00445315]
[1768471899564,1.1774907,3366.0,3365.4,0.00445315]
[1768471900665,1.1774907,3366.1,3365.4,0.00445315]
[1768471902159,2.491,3366.3,3365.4,0.00445315]
[1768471902358,2.488,3366.2,3365.4,0.00445315]
[1768471902558,5.46,3366.2,3365.4,0.00445315]
[1768471902960,6.6374907,3366.2,3365.4,0.00445315]
[1768471903263,1.1774907,3366.0,3365.1,0.00372772]
[1768471904168,1.1774907,3366.0,3365.2,0.00445315]
[1768471906067,1.1774907,3365.8,3365.1,0.00372772]
[1768471906466,1.1774907,3365.6,3364.5,0.14863]
[1768471907567,1.1774907,3365.6,3364.7,0.00445315]
[1768471908076,0.20921087,3366.1,3364.7,0.00445315]
[1768471908376,1.1774907,3365.7,3364.7,0.00445315]
[1768471908668,1.1774907,3365.5,3364.7,0.00445315]
[1768471909369,1.1774907,3365.7,3364.7,0.00445315]
[1768471909870,1.38670157,3365.7,3364.7,0.00445315]
[1768471910064,1.1774907,3365.5,3364.7,0.00445315]
[1768471912576,2.482,3365.4,3364.7,0.00445315]
[1768471912880,2.482,3365.3,3364.7,0.00445315]
[1768471913676,0.20152131,3366.1,3364.7,0.00445315]
[1768471913882,2.973,3366.0,3365.1,1.1774907]
[1768471914079,1.1774907,3366.4,3365.1,1.1774907]
[1768471914283,2.481,3365.9,3364.9,1.1774907]
[1768471916671,2.481,3365.9,3364.7,0.00445315]
[1768471916672,2.973,3366.8,3365.7,1.1774907]
[1768471916878,2.482,3366.8,3365.7,1.1774907]
[1768471917083,0.00445315,3366.9,3366.0,1.1774907]
[1768471917371,2.48645315,3366.9,3366.0,1.1774907]
[1768471918073,0.00445315,3366.9,3366.3,1.1774907]
[1768471918478,0.00445315,3366.9,3366.0,1.1774907]
[1768471921382,0.00445315,3366.9,3365.8,0.19403891]
[1768471921581,0.00445315,3366.9,3365.9,1.1774907]
[1768471926779,0.00445315,3366.9,3365.9,1.37152961]
[1768471927082,0.00445315,3366.9,3366.1,1.37152961]
[1768471928176,0.00445315,3366.9,3366.1,0.19403891]
[1768471928377,0.00445315,3366.9,3365.9,0.14857]
[1768471928578,0.00445315,3366.9,3365.9,0.34260891]
[1768471928779,0.00445315,3366.9,3366.0,1.37152961]
[1768471930492,0.00445315,3366.9,3365.9,0.14857]
[1768471948198,0.00229927,3367.3,3366.3,0.18421261]
[1768471949290,0.00445315,3367.1,3366.5,0.00445315]
[1768471965117,0.00445315,3367.1,3365.9,0.18421261]
[1768471966620,0.00445315,3367.1,3366.2,0.00445315]
[1768471966621,3.62434284,3367.0,3366.2,0.00445315]
[1768471966823,3.62434284,3367.0,3365.7,0.14858]
[1768471970931,3.62434284,3367.0,3365.5,0.18421261]
[1768471978835,3.75767758,3367.0,3365.2,0.1486]
[1768471979036,3.75767758,3367.0,3365.2,0.31751362]
[1768471980334,1.17734284,3366.6,3365.2,0.31751362]
[1768471980834,1.17734284,3366.6,3364.6,0.16891362]
[1768471981039,0.13296548,3366.7,3364.6,0.16891362]
[1768471981040,1.17734284,3366.2,3364.6,0.16891362]
[1768471983741,1.30935097,3366.2,3364.6,0.16891362]
[1768471986539,40.8,3366.4,3364.6,0.16891362]
[1768471986740,5.415,3366.3,3364.6,0.16891362]
[1768471986946,5.416,3366.2,3364.6,0.16891362]
[1768471987947,0.13067295,3366.6,3364.7,0.16891362]
[1768471988145,5.26790215,3366.5,3364.7,0.16891362]
[1768471988448,4.452,3366.5,3364.7,0.16891362]
[1768471988840,40.93067295,3366.6,3364.7,0.16891362]
[1768471989044,6.23390336,3366.5,3364.7,0.16891362]
[1768471989345,5.418,3366.5,3364.7,0.16891362]
[1768471992535,1.17734284,3366.4,3364.7,0.16891362]
[1768471995238,5.43,3366.3,3364.7,0.16891362]
[1768471995937,2.459,3366.2,3364.7,0.16891362]
[1768471996242,5.432,3366.2,3364.7,0.16891362]
[1768471997653,5.55809223,3366.2,3364.6,0.14863]
[1768471999352,1.17830044,3365.7,3364.6,0.14863]
[1768471999553,2.465,3365.6,3364.6,0.14863]
[1768472003653,2.465,3365.6,3364.6,2.77863]
[1768472007055,2.465,3365.6,3364.6,2.93850773]
[1768472007056,1.17830044,3365.4,3364.6,2.93850773]
[1768472007353,0.00445315,3365.3,3364.6,2.93850773]
[1768472016151,1.17830044,3365.1,3364.6,0.14863]
[1768472016346,1.18275359,3365.3,3364.6,0.14863]
[1768472016546,1.18275359,3365.3,3364.2,0.15987773]
[1768472016547,1.17830044,3365.0,3364.2,0.15987773]
[1768472017148,1.17830044,3365.0,3363.9,2.63]
[1768472017353,1.17830044,3365.0,3363.8,0.15987773]
[1768472017548,1.17830044,3365.0,3364.0,0.14866]
[1768472018156,1.17830044,3365.1,3364.0,0.14866]
[1768472018555,1.17830044,3365.1,3364.0,0.30853773]
[1768472019057,1.17830044,3365.1,3364.1,0.14865]
[1768472019654,0.00445315,3365.3,3364.6,0.14863]
[1768472028467,2.444,3365.9,3364.9,0.15987773]
[1768472028768,2.444,3366.1,3364.9,0.15987773]
[1768472028959,1.17830044,3365.9,3364.9,0.15987773]
[1768472029459,0.00445315,3365.7,3365.1,0.00445315]
[1768472034370,2.453,3365.6,3365.1,0.00445315]
[1768472037769,2.453,3365.6,3364.7,0.14863]
[1768472045379,2.453,3365.6,3364.7,0.06623]
[1768472050282,2.45745315,3365.7,3364.7,0.06623]
[1768472052476,1.17830044,3365.5,3364.2,2.63]
[1768472052676,1.17830044,3365.5,3364.3,2.63]
[1768472056488,1.17830044,3365.2,3364.2,2.63]
[1768472061086,1.17830044,3365.2,3364.1,0.15132994]
[1768472061291,2.45745315,3365.7,3364.1,0.15132994]
[1768472061292,1.1787121,3365.6,3364.1,0.15132994]
[1768472061492,0.82289596,3365.5,3364.1,0.15132994]
[1768472061793,1.1787121,3365.6,3364.1,0.15132994]
[1768472061993,0.82289595,3365.5,3364.1,0.15132994]
[1768472062183,1.1787121,3365.6,3364.1,0.15132994]
[1768472062380,0.82283133,3365.5,3364.1,0.15132994]
[1768472062584,1.1787121,3365.6,3364.1,0.15132994]
[1768472062784,0.82283133,3365.5,3364.1,0.15132994]
[1768472062984,1.1787121,3365.6,3364.1,0.15132994]
[1768472063184,0.82283133,3365.5,3364.1,0.15132994]
[1768472063391,1.1787121,3365.6,3364.1,0.15132994]
[1768472063593,0.82277882,3365.5,3364.1,0.15132994]
[1768472063793,1.1787121,3365.6,3364.1,0.15132994]
[1768472063993,0.82277882,3365.5,3364.1,0.15132994]
[1768472064288,2.446,3365.5,3364.1,0.15132994]
[1768472064592,2.446,3365.5,3364.2,0.14649076]
[1768472064985,2.44945315,3365.7,3364.2,0.14649076]
[1768472065188,0.82273135,3365.6,3364.2,0.14649076]
[1768472065389,2.44945315,3365.7,3364.2,0.14649076]
[1768472065692,0.82273676,3365.6,3364.2,0.14649076]
[1768472065893,0.00445315,3365.7,3364.2,0.14649076]
[1768472066094,0.82273195,3365.6,3364.2,0.14649076]
[1768472066285,2.44845315,3365.7,3364.2,0.14649076]
[1768472066486,0.82276913,3365.6,3364.2,0.14649076]
[1768472066686,2.44845315,3365.7,3364.2,0.14649076]
[1768472066889,0.82275858,3365.6,3364.2,0.14649076]
[1768472067197,2.44845315,3365.7,3364.2,0.14649076]
[1768472067387,0.82276153,3365.6,3364.2,0.14649076]
[1768472067587,2.44845315,3365.7,3364.2,0.14649076]
[1768472067793,0.82277418,3365.6,3364.2,0.14649076]
[1768472067993,2.44845315,3365.7,3364.2,0.14649076]
[1768472068192,0.82277418,3365.6,3364.2,0.14649076]
[1768472068493,2.44845315,3365.7,3364.2,0.14649076]
[1768472068692,0.82277312,3365.6,3364.2,0.14649076]
[1768472068882,2.442,3365.6,3364.2,0.14649076]
[1768472072690,2.44345315,3365.7,3364.2,0.14649076]
[1768472072889,0.8228653,3365.6,3364.2,0.14649076]
[1768472073091,0.00445315,3365.7,3364.2,0.14649076]
[1768472073092,2.44345315,3365.7,3364.2,0.14649076]
[1768472073292,0.82283802,3365.6,3364.2,0.14649076]
[1768472073593,2.44345315,3365.7,3364.2,0.14649076]
[1768472073791,0.82287569,3365.6,3364.2,0.14649076]
[1768472073991,2.44345315,3365.7,3364.2,0.14649076]
[1768472074191,0.82287439,3365.6,3364.2,0.14649076]
[1768472074393,2.44345315,3365.7,3364.2,0.14649076]
[1768472074688,0.82289721,3365.6,3364.2,0.14649076]
[1768472074890,2.44345315,3365.7,3364.2,0.14649076]
[1768472075089,0.82289527,3365.6,3364.2,0.14649076]
[1768472075300,2.44345315,3365.7,3364.2,0.14649076]
[1768472075499,0.82292033,3365.6,3364.3,0.14649076]
[1768472075795,0.00445315,3365.7,3364.3,0.14649076]
[1768472075994,0.00445315,3365.7,3364.3,0.29513076]
[1768472076195,0.00445315,3365.7,3364.4,0.14649076]
[1768472100509,0.00445315,3365.7,3364.5,0.14644538]
[1768472103307,1.1787121,3365.4,3364.1,0.14644538]
[1768472112418,1.1787121,3365.4,3363.8,0.00313403]
[1768472112722,3.5897121,3365.4,3363.8,0.14957941]
[1768472117627,0.09906043,3365.6,3363.9,0.14644538]
[1768472117817,5.381,3365.5,3364.0,0.14644538]
[1768472120327,0.00445315,3365.7,3364.0,0.14644538]
[1768472120528,0.82356038,3365.6,3364.0,0.14644538]
[1768472120718,2.41045315,3365.7,3364.0,0.14644538]
[1768472120921,0.82356052,3365.6,3364.1,0.1428262]
[1768472121120,0.82357486,3365.5,3364.1,0.1428262]
[1768472121322,1.17849179,3365.5,3364.1,0.1428262]
[1768472122631,1.17849179,3365.5,3364.2,0.1428262]
[1768472126134,1.17849179,3365.6,3364.2,0.1428262]
[1768472126324,0.82379675,3365.5,3364.2,0.1428262]
[1768472126525,1.17849179,3365.6,3364.2,0.1428262]
[1768472126728,0.14145212,3366.4,3365.2,1.17849179]
[1768472126930,1.17849179,3366.0,3364.9,0.14862]
[1768472127128,1.17849179,3365.7,3364.9,0.14862]
[1768472127932,0.00445315,3365.6,3365.0,0.00445315]
[1768472132533,0.14145212,3366.0,3365.0,0.00445315]
[1768472133638,0.00445315,3365.8,3365.0,0.00445315]
[1768472149545,0.14145212,3367.1,3365.5,0.14859]
[1768472149751,1.17849179,3366.0,3365.0,0.00445315]
[1768472150050,1.31994391,3366.3,3365.0,0.00445315]
[1768472150650,0.00445315,3366.0,3365.0,0.00445315]
[1768472152144,0.00445315,3366.0,3365.0,0.15306315]
[1768472152339,2.973,3366.8,3365.0,0.15306315]
[1768472152340,0.14463488,3367.8,3365.0,0.14309077]
[1768472152540,0.14463488,3366.9,3365.8,0.14857]
[1768472153440,0.00445315,3366.7,3365.8,0.14857]
[1768472154247,1.18294494,3366.7,3365.8,0.14857]
[1768472154847,0.00445315,3366.7,3365.8,0.14857]
[1768472156759,0.00445315,3366.7,3366.1,1.17849179]
[1768472156950,0.14463488,3367.4,3366.1,1.17849179]
[1768472157961,0.00445315,3367.0,3366.1,1.17849179]
[1768472159649,0.14463488,3367.6,3366.4,1.17849179]
[1768472159851,0.14463488,3368.3,3366.8,1.17849179]
[1768472160052,1.32312667,3367.8,3366.4,0.15224632]
[1768472160458,1.32312667,3367.8,3366.5,1.17849179]
[1768472160761,0.00296878,3367.5,3366.8,0.00445315]
[1768472164557,0.14463488,3368.9,3367.4,1.17849179]
[1768472164762,0.14463488,3368.2,3367.0,2.77852]
[1768472164965,0.14463488,3368.2,3367.0,0.14852]
[1768472165464,0.14463488,3368.2,3367.0,1.32701179]
[1768472165665,0.14829243,3368.2,3367.0,1.32701179]
[1768472167560,1.32678422,3368.2,3367.0,0.14852]
[1768472167963,2.53229243,3368.2,3367.0,0.14852]
[1768472168666,2.53229243,3368.2,3367.1,1.17849179]
[1768472168861,0.00365755,3368.2,3367.3,1.17849179]
[1768472170575,0.00365755,3368.2,3367.1,1.17849179]
[1768472170777,0.00365755,3368.2,3367.1,3.80849179]
[1768472171795,0.00365755,3368.2,3367.1,2.63]
[1768472172179,0.14829243,3368.2,3367.0,0.14852]
[1768472173085,2.52829243,3368.2,3367.0,0.14852]
[1768472176494,0.14463488,3368.1,3367.0,0.14852]
[1768472177092,0.14463488,3368.1,3367.0,1.32701179]
[1768472178092,0.14463488,3368.1,3367.0,0.14852]
[1768472179880,1.17849179,3367.5,3367.0,0.14852]
[1768472180086,0.14463488,3368.0,3366.8,0.00445315]
[1768472180087,1.17849179,3367.3,3366.8,0.00445315]
[1768472180283,1.17849179,3367.3,3366.6,2.63]
[1768472180594,0.14463488,3367.1,3366.6,2.63]
[1768472181197,1.17849179,3367.3,3366.6,2.63]
[1768472181390,1.17849179,3367.3,3366.6,2.63445315]
[1768472181391,1.18294494,3367.3,3366.6,2.63445315]
[1768472181590,0.00445315,3367.3,3366.6,2.63445315]
[1768472184204,0.00445315,3367.3,3366.6,0.00445315]
[1768472184595,0.13799049,3367.3,3366.4,0.15224632]
[1768472184803,2.38,3367.2,3366.4,0.15224632]
[1768472185794,2.51353734,3367.2,3366.5,0.00445315]
[1768472185998,0.13353734,3367.1,3365.7,2.63]
[1768472186204,0.13353734,3367.1,3365.5,2.63]
[1768472186397,0.13353734,3367.1,3365.9,0.14857]
[1768472186998,0.13353734,3367.0,3366.2,0.00445315]
[1768472187506,0.13353734,3367.0,3365.4,0.14859]
[1768472187507,0.13353734,3366.7,3365.4,0.14859]
[1768472188502,0.13353734,3366.7,3365.4,0.15135348]
[1768472189205,0.13353734,3367.2,3365.7,0.00445315]
[1768472189403,2.381,3366.8,3365.7,0.00445315]
[1768472191207,2.38,3366.7,3365.7,0.00445315]
[1768472191796,2.38,3367.0,3366.0,0.14857]
[1768472192405,2.51699049,3367.3,3366.0,0.14857]
[1768472193909,0.13799049,3367.3,3366.0,0.14857]
[1768472194105,2.381,3367.2,3366.0,0.14857]
[1768472194710,0.13353734,3367.1,3366.0,0.14857]
[1768472195611,0.13353734,3367.1,3366.1,0.14856]
[1768472198120,2.51553734,3367.0,3366.1,0.14856]
[1768472200514,0.13353734,3366.9,3366.1,0.14856]
[1768472213923,0.13353734,3366.9,3365.7,0.00445315]
[1768472217129,2.37,3366.8,3365.7,0.00445315]
[1768472217533,0.13353734,3366.9,3365.7,0.00445315]
[1768472217733,2.369,3367.0,3365.7,0.00445315]
[1768472218028,2.369,3367.1,3365.7,0.00445315]
[1768472218234,2.51356022,3367.1,3365.7,0.00445315]
[1768472218723,2.51356022,3367.1,3365.8,0.14858]
[1768472219328,0.14456022,3367.1,3365.8,0.14858]
[1768472220628,0.14456022,3367.1,3365.8,2.77858]
[1768472222025,0.14456022,3367.1,3365.8,0.14858]
[1768472222224,0.14456022,3366.6,3365.7,0.00445315]
[1768472222419,0.14456022,3366.6,3365.4,0.00276348]
[1768472223218,0.14456022,3366.3,3365.4,0.00276348]
[1768472223726,0.14456022,3366.3,3365.5,0.00445315]
[1768472225830,0.14456022,3366.8,3365.5,0.00445315]
[1768472226031,0.82008118,3366.7,3365.5,0.00445315]
[1768472226229,2.364,3366.7,3365.5,0.00445315]
[1768472226628,2.365,3366.7,3365.5,0.00445315]
[1768472226835,0.14456022,3366.8,3365.5,0.00445315]
[1768472227037,2.72797416,3366.7,3365.5,0.00445315]
[1768472227227,1.908,3366.7,3365.5,0.00445315]
[1768472227732,2.05256022,3366.7,3365.5,0.00445315]
[1768472227927,0.14456022,3366.6,3365.5,0.00445315]
[1768472229235,2.367,3367.0,3365.5,0.00445315]
[1768472229441,0.14456022,3366.9,3365.5,0.00445315]
[1768472229739,0.14456022,3366.7,3365.5,0.00445315]
[1768472232742,0.14456022,3366.3,3365.5,0.00445315]
[1768472233139,2.373,3366.2,3365.5,0.00445315]
[1768472233541,2.51756022,3366.2,3365.5,0.00445315]
[1768472235240,2.51756022,3366.2,3364.8,0.14862]
[1768472235241,0.14456022,3366.1,3364.8,0.14862]
[1768472236346,0.14456022,3366.1,3364.8,0.15081834]
[1768472238633,0.14456022,3366.5,3364.9,0.14861]
[1768472238833,1.32165841,3365.9,3364.9,0.14861]
[1768472239033,1.32165841,3365.9,3364.8,0.00219834]
[1768472239034,0.14456022,3365.8,3364.8,0.00219834]
[1768472239242,0.14776555,3365.8,3365.1,0.00296878]
[1768472239936,0.14776555,3365.8,3364.8,0.00219834]
[1768472241347,0.13949237,3365.4,3364.2,0.14865]
[1768472241546,2.377,3365.3,3364.2,0.14865]
[1768472241846,0.00445315,3365.1,3364.2,0.14865]
[1768472242246,0.00445315,3365.1,3364.2,0.1524401]
[1768472254358,1.31296059,3366.1,3364.6,1.17857598]
[1768472254554,1.31296059,3366.1,3365.0,1.17857598]
[1768472254555,0.13438461,3366.1,3365.0,1.17857598]
[1768472254759,1.17857598,3365.9,3364.7,1.17857598]
[1768472254946,1.17857598,3365.9,3364.5,1.17857598]
[1768472255558,0.00445315,3365.5,3364.6,0.14863]
[1768472256149,2.371,3366.2,3364.6,0.14863]
[1768472256363,2.371,3366.2,3364.7,1.17857598]
[1768472256657,3.54957598,3366.2,3364.7,1.17857598]
[1768472257161,0.00445315,3365.6,3364.7,1.17857598]
[1768472257566,0.00445315,3365.6,3364.7,1.32720598]
[1768472259052,0.00445315,3365.6,3364.7,0.14863]
[1768472260758,1.18302913,3365.6,3364.7,0.14863]
[1768472263468,0.13438461,3365.5,3364.7,0.14863]
[1768472264464,0.13438461,3365.5,3364.8,0.00445315]
[1768472266162,1.17857598,3365.4,3364.8,0.00445315]
[1768472267672,0.13438461,3365.5,3364.8,0.00445315]
[1768472268568,1.18302913,3365.6,3364.8,0.00445315]
[1768472268569,0.13438461,3365.3,3364.8,0.00445315]
[1768472268765,0.13438461,3365.3,3364.3,2.63]
[1768472268974,1.17857598,3365.5,3364.2,2.7824401]
[1768472269566,1.17857598,3365.5,3364.2,0.1524401]
[1768472270172,1.31296059,3365.5,3364.2,0.1524401]
[1768472270370,0.13438461,3365.2,3364.2,0.1524401]
[1768472270569,1.17857598,3364.9,3364.2,0.1524401]
[1768472271168,1.17857598,3365.1,3364.2,0.1524401]
[1768472271776,0.13438461,3365.2,3364.2,0.1524401]
[1768472278179,1.17857598,3365.1,3364.2,0.1524401]
[1768472278375,1.3207073,3365.1,3364.2,0.1524401]
[1768472279281,0.14213132,3365.0,3364.2,0.0037901]
[1768472279487,0.14213132,3364.6,3363.5,2.61868913]
[1768472279690,0.14213132,3364.6,3363.4,0.14868]
[1768472280278,2.36,3365.4,3363.4,0.14868]
[1768472280279,0.14213132,3364.4,3363.4,0.14868]
[1768472280480,0.14213132,3364.3,3363.7,0.00445315]
[1768472281384,0.14213132,3364.7,3363.7,0.00445315]
[1768472281590,0.14213132,3365.0,3363.7,0.00445315]
[1768472281781,2.355,3364.9,3363.7,0.00445315]
[1768472282180,0.14213132,3365.0,3363.7,0.00445315]
[1768472282382,0.14213132,3365.0,3363.8,1.17857598]
[1768472282586,0.14213132,3365.0,3363.7,1.18302913]
[1768472283384,0.14213132,3365.0,3364.0,1.17857598]
[1768472283581,0.14213132,3365.4,3363.7,0.15312315]
[1768472283782,0.14213132,3365.4,3364.0,1.17857598]
[1768472287796,0.14213132,3365.4,3364.3,1.17857598]
[1768472288991,1.18302913,3365.6,3364.3,1.17857598]
[1768472288992,2.357,3365.5,3364.3,1.17857598]
[1768472289794,0.00445315,3365.6,3364.1,0.14865]
[1768472290101,2.36245315,3365.6,3364.4,1.17857598]
[1768472291599,0.00445315,3365.6,3364.4,1.17857598]
[1768472291799,2.36445315,3365.6,3364.4,1.17857598]
[1768472291991,2.36545315,3365.6,3364.4,1.17857598]
[1768472292191,0.00445315,3365.6,3364.4,1.17857598]
[1768472292499,1.32516045,3365.6,3364.2,0.14865]
[1768472293091,3.68716045,3365.6,3364.2,0.14865]
[1768472294494,0.14213132,3365.5,3364.2,0.14865]
[1768472295793,1.17857598,3365.3,3364.2,0.14865]
[1768472296105,1.3207073,3365.3,3364.2,0.14865]
[1768472296402,1.17857598,3365.3,3364.2,0.14865]
[1768472296990,0.14213132,3365.5,3364.2,0.14865]
[1768472297195,1.3207073,3365.5,3364.2,0.14865]
[1768472298497,0.14213132,3365.4,3364.2,0.14865]
[1768472300507,0.14213132,3365.1,3364.2,0.14865]
[1768472300698,1.17857598,3364.9,3363.7,0.00445315]
[1768472301097,0.13700833,3365.5,3364.6,1.17857598]
[1768472301408,0.13700833,3365.5,3364.3,1.17857598]
[1768472305609,0.13700833,3365.5,3364.2,0.14865]
[1768472306010,0.13700833,3365.5,3364.2,1.32722598]
[1768472307013,0.00320533,3365.8,3365.2,1.17857598]
[1768472307208,0.13556322,3366.4,3365.0,1.17857598]
[1768472307509,0.13556322,3366.4,3364.7,0.14862]
[1768472308010,0.00445315,3365.9,3364.7,0.14862]
[1768472308314,0.0065374,3365.9,3364.7,0.14862]
[1768472316709,0.14210062,3365.9,3364.7,0.14862]
[1768472324521,0.0065374,3365.9,3364.7,0.14862]
[1768472330224,0.14210062,3365.9,3364.7,0.14862]
[1768472331025,0.14210062,3365.9,3364.2,2.61868913]
[1768472331215,0.14210062,3365.9,3364.0,2.76734913]
[1768472332513,0.14210062,3365.9,3364.2,0.14865]
[1768472333724,0.14210062,3365.9,3364.3,0.14864]
[1768472338930,0.14210062,3365.9,3364.4,0.28685123]
[1768472339222,0.0065374,3365.9,3364.4,0.28685123]
[1768472341724,0.13883739,3368.2,3366.2,0.13821123]
[1768472341933,0.82053186,3368.1,3366.4,0.13821123]
[1768472342124,0.13883739,3368.2,3366.9,0.14853]
[1768472342324,0.13883739,3368.7,3367.0,0.14852]
[1768472342718,0.00445315,3368.2,3367.5,0.00445315]
[1768472349028,0.13883739,3369.1,3367.6,1.17784268]
[1768472349236,0.13883739,3369.9,3368.0,1.17784268]
[1768472349730,0.13883739,3369.9,3367.9,0.14848]
[1768472350133,0.14244866,3369.9,3367.9,0.14848]
[1768472355446,0.14244866,3369.9,3368.0,2.63]
[1768472356938,0.13883739,3369.6,3368.0,2.63]
[1768472357145,0.13883739,3369.4,3368.0,2.63]
[1768472357448,0.00445315,3369.0,3368.0,2.63]
[1768472357648,0.00445315,3369.0,3367.9,0.14848]
[1768472359752,0.00445315,3369.0,3367.6,2.63]
[1768472361143,0.00445315,3369.0,3367.7,2.63]
[1768472366753,0.1404438,3369.0,3367.5,0.00445315]
[1768472366961,0.13599065,3368.8,3367.5,0.00445315]
[1768472368952,0.00445315,3369.0,3367.5,0.00445315]
[1768472369150,0.00445315,3369.0,3367.5,0.14820888]
[1768472369352,0.00445315,3369.0,3367.7,1.17593532]
[1768472369954,0.00445315,3369.0,3367.5,1.3241442]
[1768472370354,1.17593532,3368.9,3367.5,1.3241442]
[1768472370767,1.17593532,3368.9,3367.5,1.18038847]
[1768472374567,1.17593532,3368.9,3367.5,0.00445315]
[1768472374768,1.17593532,3368.9,3367.6,1.17593532]
[1768472375067,0.00445315,3369.0,3367.6,1.17593532]
[1768472375456,0.00445315,3369.0,3367.5,0.00445315]
[1768472375662,0.00445315,3369.0,3367.6,1.17593532]
[1768472377166,1.17593532,3368.9,3367.5,0.00445315]
[1768472377361,1.17593532,3368.9,3367.5,1.18038847]
[1768472378064,1.31637912,3369.0,3367.5,1.18038847]
[1768472378759,1.31637912,3369.0,3367.5,3.81038847]
[1768472380669,1.31637912,3369.0,3367.5,2.63445315]
[1768472380870,0.13599065,3368.8,3367.5,3.81038847]
[1768472382871,0.00445315,3369.0,3367.9,1.17593532]
[1768472390278,0.00445315,3369.0,3367.7,0.29224573]
[1768472390466,0.00445315,3369.0,3368.0,1.17593532]
[1768472394375,0.00445315,3369.0,3367.8,2.63]
[1768472395077,0.00445315,3369.0,3368.0,1.17593532]
[1768472397982,0.14008832,3369.8,3368.6,1.17593532]
[1768472398277,0.81191182,3369.7,3368.6,1.17593532]
[1768472398475,0.14008832,3369.8,3368.6,1.17593532]
[1768472398782,0.81170162,3369.7,3368.6,1.17593532]
[1768472399080,0.14008832,3369.8,3368.6,1.17593532]
[1768472399280,0.14008832,3369.8,3368.4,1.17593532]
[1768472399482,1.17593532,3369.8,3368.6,1.17593532]
[1768472400178,1.17593532,3369.8,3368.3,0.14265579]
[1768472400383,0.14008832,3369.8,3368.3,1.31859111]
[1768472400577,1.31602364,3369.8,3368.3,1.31859111]
[1768472402380,1.31602364,3369.8,3368.3,3.94859111]
[1768472402885,0.14008832,3369.8,3368.5,1.17593532]
[1768472405078,0.81117043,3369.7,3368.5,1.17593532]
[1768472405278,0.81117043,3369.6,3368.5,1.17593532]
[1768472405482,1.31602364,3369.8,3368.5,1.17593532]
[1768472405681,0.81114157,3369.7,3368.5,1.17593532]
[1768472405873,1.31602364,3369.8,3368.5,1.17593532]
[1768472406078,0.8111363,3369.7,3368.5,1.17593532]
[1768472406281,1.31602364,3369.8,3368.5,1.17593532]
[1768472406486,0.8111064,3369.7,3368.5,1.17593532]
[1768472406687,1.31602364,3369.8,3368.5,1.17593532]
[1768472406885,0.8111064,3369.7,3368.5,1.17593532]
[1768472407080,1.31602364,3369.8,3368.5,1.17593532]
[1768472407081,0.14008832,3369.8,3368.5,1.17593532]
[1768472407288,0.81110638,3369.7,3368.5,1.17593532]
[1768472407587,0.14008832,3369.8,3368.5,1.17593532]
[1768472407778,0.8110944,3369.7,3368.5,1.17593532]
[1768472407980,0.14008832,3369.8,3368.5,1.17593532]
[1768472408188,0.8110944,3369.7,3368.5,1.17593532]
[1768472408486,0.14008832,3369.8,3368.5,1.17593532]
[1768472408687,0.81109633,3369.7,3368.5,1.17593532]
[1768472408889,0.14008832,3369.8,3368.5,1.17593532]
[1768472409082,0.81109619,3369.7,3368.5,1.17593532]
[1768472409278,0.14008832,3369.8,3368.5,1.17593532]
[1768472409479,0.811115,3369.7,3368.5,1.17593532]
[1768472409687,0.14008832,3369.8,3368.5,1.17593532]
[1768472409890,0.811115,3369.7,3368.5,1.17593532]
[1768472410185,0.14008832,3369.8,3368.5,1.17593532]
[1768472410386,0.81115157,3369.7,3368.5,1.17593532]
[1768472410586,0.14008832,3369.8,3368.5,1.17593532]
[1768472410786,0.81115157,3369.7,3368.5,1.17593532]
[1768472410988,0.14008832,3369.8,3368.5,1.17593532]
[1768472411192,1.98708686,3369.7,3368.4,2.63]
[1768472411382,0.14008832,3369.6,3368.4,2.63]
[1768472411585,1.17593532,3369.5,3368.4,2.63]
[1768472412587,1.17593532,3369.4,3368.4,2.63]
[1768472412790,0.14008832,3369.5,3368.4,2.63]
[1768472413690,0.14008832,3369.5,3368.4,3.80593532]
[1768472414589,1.31963491,3369.9,3368.6,1.17593532]
[1768472414792,0.81141062,3369.8,3368.6,1.17593532]
[1768472414990,0.81141062,3369.7,3368.6,1.17593532]
[1768472415189,1.31963491,3369.9,3368.6,1.17593532]
[1768472416394,1.17593532,3369.8,3368.6,1.17593532]
[1768472417186,0.14369959,3369.9,3368.8,1.17593532]
[1768472417582,0.00445315,3369.7,3368.8,1.17593532]
[1768472417891,0.00037403,3369.7,3369.0,1.17593532]
[1768472418289,0.00361127,3369.9,3369.0,1.17593532]
[1768472419384,0.00296878,3369.8,3369.0,1.17593532]
[1768472420994,0.00296878,3369.8,3368.9,1.17593532]
[1768472426696,0.00296878,3369.8,3368.8,2.63]
[1768472426898,0.00296878,3369.8,3368.8,3.80593532]
[1768472427085,0.00296878,3369.8,3368.8,2.63]
[1768472427290,0.00296878,3369.8,3368.8,3.80593532]
[1768472428696,0.00296878,3369.8,3368.9,2.63]
[1768472428888,0.00296878,3369.8,3368.9,3.80593532]
[1768472429301,0.00296878,3369.8,3368.9,2.63]
[1768472429701,1.30623139,3371.0,3369.0,0.13623123]
[1768472429894,0.13119276,3370.8,3369.0,3.839]
[1768472430092,0.94201349,3370.7,3369.0,3.839]
[1768472430294,0.81082073,3370.6,3369.0,3.839]
[1768472430599,0.00368841,3370.6,3369.0,3.839]
[1768472430797,0.00368841,3370.6,3369.5,0.00445315]
[1768472430998,0.81072442,3370.5,3369.5,0.00775606]
[1768472431302,0.00368841,3370.6,3369.6,3.839]
[1768472431902,0.00368841,3370.6,3369.6,3.98741]
[1768472432101,0.13119276,3371.5,3369.7,0.1484]
[1768472432300,0.13119276,3371.5,3369.7,2.76623123]
[1768472432606,0.13119276,3371.5,3370.0,0.14839]
[1768472433200,0.13409946,3371.5,3370.0,0.14839]
[1768472433509,0.13409946,3371.5,3369.8,0.13623123]
[1768472433997,0.13409946,3371.5,3370.0,0.14839]
[1768472435205,0.13119276,3371.3,3370.1,1.209]
[1768472437703,0.13119276,3371.3,3369.9,1.209]
[1768472438608,0.0029067,3371.5,3369.9,1.209]
[1768472438815,0.0029067,3371.5,3370.0,2.76623123]
[1768472439010,0.0029067,3371.5,3370.1,0.14839]
[1768472439204,0.0029067,3371.5,3370.1,1.35739]
[1768472439405,0.0029067,3371.5,3370.2,1.209]
[1768472440614,0.13119276,3371.4,3370.2,1.209]
[1768472441921,0.13119276,3371.4,3370.1,0.14839]
[1768472442110,0.13119276,3371.4,3370.1,1.35639]
[1768472442313,0.13119276,3371.4,3370.1,0.14839]
[1768472442611,0.13119276,3371.4,3370.1,1.35639]
[1768472446124,0.13119276,3371.4,3370.1,0.14839]
[1768472449221,0.13119276,3371.4,3370.1,2.77839]
[1768472450728,0.0029067,3371.5,3370.2,0.14838]